bitfinex/quotes_BTCUSD_20250519
["timestamp","ask_amount","ask_price","bid_price","bid_amount"]
[1747642268187,0.03881798,103040.0,103030.0,0.24923868]
[1747642269557,0.03881798,103040.0,103030.0,0.23953353]
[1747642269897,0.23291735,103040.0,103030.0,0.24153353]
[1747642270297,0.23291735,103040.0,103030.0,0.23953362]
[1747642270499,0.23291819,103040.0,103030.0,0.22212285]
[1747642270713,0.23291819,103040.0,103030.0,0.23182847]
[1747642270919,0.23291819,103040.0,103030.0,0.241534]
[1747642271120,0.23291819,103040.0,103030.0,0.23182847]
[1747642271330,0.23291819,103040.0,103030.0,0.241534]
[1747642272460,0.21350911,103040.0,103030.0,0.0183]
[1747642272664,0.21350911,103040.0,103030.0,0.02800591]
[1747642272879,0.21350911,103040.0,103030.0,0.002]
[1747642273524,0.57518573,103040.0,103030.0,0.002]
[1747642273729,0.78969155,103040.0,103030.0,0.002]
[1747642273971,1.14539155,103040.0,103030.0,0.002]
[1747642275049,0.22325619,103020.0,103010.0,0.21457098]
[1747642275248,0.42749719,103020.0,103010.0,0.21457098]
[1747642275756,0.42749719,103020.0,103010.0,0.22427858]
[1747642276318,0.42749719,103020.0,103010.0,0.22442256]
[1747642276522,0.42749719,103020.0,103010.0,0.23412997]
[1747642276723,0.214146,103020.0,103010.0,0.2759371]
[1747642276933,0.22385266,103020.0,103010.0,0.2759371]
[1747642277148,0.00970619,103020.0,103010.0,0.2759371]
[1747642277756,0.01941257,103020.0,103010.0,0.2779371]
[1747642278290,0.22323471,103030.0,103020.0,0.23825629]
[1747642278512,0.23294052,103030.0,103020.0,0.23825638]
[1747642278665,0.23294052,103030.0,103020.0,0.22855029]
[1747642278666,0.23294118,103030.0,103020.0,0.22855029]
[1747642278920,0.22323565,103030.0,103020.0,0.22855029]
[1747642279255,0.21352993,103030.0,103020.0,0.22855029]
[1747642280283,0.20382412,103030.0,103020.0,0.015]
[1747642280484,0.00970657,103020.0,103010.0,0.65971401]
[1747642280909,0.03882607,103020.0,103010.0,0.6694218]
[1747642281097,0.03882607,103020.0,103010.0,0.67912893]
[1747642281230,0.22325638,103020.0,103010.0,0.67912893]
[1747642281623,0.03882607,103020.0,103010.0,0.67912893]
[1747642281825,0.02911932,103020.0,103010.0,0.68212893]
[1747642283918,0.009706,103020.0,103010.0,0.68212893]
[1747642284260,0.42687517,103030.0,103020.0,0.22875028]
[1747642284473,0.22323517,103030.0,103020.0,0.23835666]
[1747642284674,0.22323517,103030.0,103020.0,0.22865028]
[1747642284813,0.22323565,103030.0,103020.0,0.22875047]
[1747642285014,0.21352974,103030.0,103020.0,0.22875047]
[1747642285264,0.22323565,103030.0,103020.0,0.23845685]
[1747642285671,0.22323565,103030.0,103020.0,0.22875047]
[1747642285869,0.22323565,103030.0,103020.0,0.23845704]
[1747642286892,0.22323565,103030.0,103020.0,0.24816342]
[1747642287642,0.22333565,103030.0,103020.0,0.24816342]
[1747642288294,0.22333565,103030.0,103020.0,0.23845704]
[1747642288509,0.21362993,103030.0,103020.0,0.24522222]
[1747642288717,0.21362993,103030.0,103020.0,0.25492869]
[1747642289182,0.30072934,103040.0,103030.0,0.19411821]
[1747642289404,0.64482171,103060.0,103040.0,0.19409937]
[1747642289626,0.00970327,103050.0,103040.0,0.24841725]
[1747642289827,0.00970327,103050.0,103040.0,0.27118243]
[1747642289828,0.02911056,103050.0,103040.0,0.27118243]
[1747642290260,0.02911056,103050.0,103040.0,0.27664766]
[1747642290919,0.23289493,103050.0,103040.0,0.24123924]
[1747642291110,0.24259886,103050.0,103040.0,0.25094364]
[1747642291314,0.04851832,103050.0,103040.0,0.26064794]
[1747642292719,0.03881439,103050.0,103040.0,0.26064794]
[1747642292939,0.03881439,103050.0,103040.0,0.27694794]
[1747642295034,0.03881439,103050.0,103040.0,0.28379143]
[1747642295407,0.03881439,103050.0,103040.0,0.26749143]
[1747642296413,0.24259886,103050.0,103040.0,0.26749143]
[1747642296629,0.04851832,103050.0,103040.0,0.26749143]
[1747642297885,0.03881439,103050.0,103040.0,0.26749143]
[1747642298366,0.03881439,103050.0,103040.0,0.28249143]
[1747642298575,0.01940682,103050.0,103040.0,0.28249143]
[1747642298781,0.40768,103060.0,103050.0,0.23849148]
[1747642298999,0.01940512,103060.0,103050.0,0.24819475]
[1747642299188,0.2328728,103060.0,103050.0,0.22878812]
[1747642299399,0.2328728,103060.0,103050.0,0.2134883]
[1747642299602,0.00970346,103050.0,103040.0,0.26288197]
[1747642299807,0.00970346,103050.0,103040.0,0.25611679]
[1747642300126,0.00979651,103050.0,103040.0,0.25611679]
[1747642300330,9.315e-05,103050.0,103040.0,0.25611679]
[1747642300520,0.00979642,103050.0,103040.0,0.26288175]
[1747642300718,0.01949988,103050.0,103040.0,0.26288175]
[1747642300963,0.00979642,103050.0,103040.0,0.26288175]
[1747642301165,9.315e-05,103050.0,103040.0,1.11389115]
[1747642301996,9.315e-05,103050.0,103040.0,1.128432]
[1747642303150,9.315e-05,103050.0,103040.0,1.13064735]
[1747642307629,0.23298808,103050.0,103040.0,0.76640258]
[1747642307824,0.03890716,103050.0,103040.0,0.67350207]
[1747642308033,0.00979632,103050.0,103040.0,0.67350207]
[1747642308227,0.03890688,103050.0,103040.0,0.67350207]
[1747642308442,0.03890679,103050.0,103040.0,0.67350207]
[1747642309038,0.03890679,103050.0,103040.0,0.67127138]
[1747642310815,0.01949968,103050.0,103040.0,0.67127138]
[1747642311000,0.02920323,103050.0,103040.0,0.67127138]
[1747642311304,0.23298818,103050.0,103040.0,0.65597176]
[1747642311504,0.23298884,103050.0,103040.0,0.63656249]
[1747642311708,0.23848529,103050.0,103040.0,0.4424633]
[1747642312108,0.23848529,103050.0,103040.0,0.64626745]
[1747642312266,0.23848529,103050.0,103040.0,0.65597213]
[1747642312470,0.23848529,103050.0,103040.0,0.64626745]
[1747642312908,0.23848529,103050.0,103040.0,0.65597213]
[1747642313130,0.22878127,103050.0,103040.0,0.67538112]
[1747642313298,0.22878127,103050.0,103040.0,0.66567672]
[1747642313863,0.22878127,103050.0,103040.0,1.16567672]
[1747642313987,0.22878127,103050.0,103040.0,1.17538121]
[1747642314202,0.22878127,103050.0,103040.0,1.16855306]
[1747642315128,0.21358127,103050.0,103040.0,1.1685524]
[1747642315888,9.315e-05,103050.0,103040.0,1.1840524]
[1747642316098,0.00979642,103050.0,103040.0,1.1997524]
[1747642316309,0.00979632,103050.0,103040.0,1.1997524]
[1747642316441,0.01949968,103050.0,103040.0,1.1997524]
[1747642318484,0.00979632,103050.0,103040.0,1.1997524]
[1747642318911,9.315e-05,103050.0,103040.0,1.6370618]
[1747642319201,9.315e-05,103050.0,103040.0,1.6584308]
[1747642321109,9.315e-05,103050.0,103040.0,1.85516265]
[1747642323688,9.315e-05,103050.0,103040.0,1.86516265]
[1747642324373,0.04850299,103080.0,103070.0,0.22314817]
[1747642324595,9.313e-05,103080.0,103070.0,0.22314741]
[1747642324801,0.01949431,103080.0,103070.0,0.22314741]
[1747642325013,0.01949431,103080.0,103070.0,0.22991237]
[1747642325891,0.01949431,103080.0,103070.0,0.2353776]
[1747642326108,0.02449431,103080.0,103070.0,0.2353776]
[1747642326311,0.03419513,103080.0,103070.0,0.2353776]
[1747642326745,0.03919513,103080.0,103070.0,0.2353776]
[1747642327167,0.02949431,103080.0,103070.0,0.2353776]
[1747642327767,0.02949421,103080.0,103070.0,0.2353776]
[1747642328186,0.03919494,103080.0,103070.0,0.2353776]
[1747642328386,0.01979358,103080.0,103070.0,0.2353776]
[1747642328602,0.02949431,103080.0,103070.0,0.2353776]
[1747642329930,0.01979358,103080.0,103070.0,0.2353776]
[1747642330390,0.01009313,103080.0,103070.0,0.6655776]
[1747642330574,0.01979348,103080.0,103070.0,0.6819776]
[1747642330748,0.01979348,103080.0,103070.0,0.6655776]
[1747642331153,0.02449402,103080.0,103070.0,0.6655776]
[1747642331354,0.2282187,103080.0,103070.0,0.61997307]
[1747642331714,0.26401993,103080.0,103070.0,0.42593019]
[1747642331925,0.2493193,103080.0,103070.0,0.42593019]
[1747642332145,0.4884856,103080.0,103070.0,0.42593019]
[1747642332353,0.4894856,103080.0,103070.0,0.42593019]
[1747642332560,0.23761838,103080.0,103070.0,0.62420989]
[1747642332707,0.23761838,103080.0,103070.0,0.62714688]
[1747642333119,0.23761838,103080.0,103070.0,0.61744493]
[1747642333989,0.23961838,103080.0,103070.0,0.4137]
[1747642334192,0.23961838,103080.0,103060.0,0.22316875]
[1747642334415,0.22341838,103080.0,103070.0,0.19404288]
[1747642334812,0.20374502,103070.0,103050.0,0.63108131]
[1747642335022,0.03500465,103060.0,103050.0,0.64369187]
[1747642335239,0.04470726,103060.0,103050.0,0.64369187]
[1747642335467,0.04470717,103060.0,103050.0,0.64369187]
[1747642335786,0.04470717,103060.0,103050.0,0.64915352]
[1747642335915,0.04470717,103060.0,103050.0,0.65591415]
[1747642336130,0.01940465,103060.0,103050.0,0.65791415]
[1747642336314,0.42208502,103070.0,103050.0,0.63850695]
[1747642336315,0.0159,103070.0,103050.0,0.63850695]
[1747642336526,0.13230464,103080.0,103070.0,0.22314845]
[1747642336742,0.33602942,103080.0,103070.0,0.21344688]
[1747642336956,0.22901929,103080.0,103070.0,0.21344707]
[1747642337156,0.23441828,103080.0,103070.0,0.20374502]
[1747642337795,0.23541828,103080.0,103070.0,0.20374502]
[1747642338005,0.23741828,103080.0,103070.0,0.20374502]
[1747642338226,0.22771718,103080.0,103070.0,0.00970214]
[1747642338646,0.22771718,103080.0,103070.0,0.21344707]
[1747642340731,0.04339386,103080.0,103070.0,0.23285088]
[1747642340882,0.05309431,103080.0,103070.0,0.24255264]
[1747642341090,0.05309431,103080.0,103070.0,0.24007264]
[1747642341355,0.04339358,103080.0,103070.0,0.24255198]
[1747642341529,0.00309313,103080.0,103070.0,0.24255198]
[1747642341730,0.02829367,103080.0,103070.0,0.25477105]
[1747642342322,0.01859313,103080.0,103070.0,0.25477105]
[1747642342534,0.00309313,103080.0,103070.0,0.27007105]
[1747642343756,0.00309313,103080.0,103070.0,0.28597105]
[1747642344181,0.00309313,103080.0,103070.0,0.27007105]
[1747642344445,0.00309313,103080.0,103070.0,0.38338045]
[1747642344655,0.00309313,103080.0,103070.0,0.72338045]
[1747642345041,0.00309313,103080.0,103070.0,0.73249235]
[1747642345247,9.313e-05,103080.0,103070.0,0.73249235]
[1747642347186,9.313e-05,103080.0,103070.0,0.7470332]
[1747642348592,9.313e-05,103080.0,103070.0,0.7510332]
[1747642348994,9.313e-05,103080.0,103070.0,0.8288126]
[1747642349400,9.313e-05,103080.0,103070.0,1.2525126]
[1747642349627,9.313e-05,103080.0,103070.0,1.1747332]
[1747642350233,0.24367346,103120.0,103110.0,0.2230616]
[1747642350420,0.25385013,103120.0,103110.0,0.2230616]
[1747642350881,0.04577013,103120.0,103110.0,0.22982071]
[1747642351440,0.01667971,103120.0,103110.0,0.22982071]
[1747642351714,0.00047971,103120.0,103110.0,0.2384616]
[1747642351927,0.00047971,103120.0,103110.0,0.24392156]
[1747642352135,0.00347971,103120.0,103110.0,0.24392156]
[1747642352510,0.00647971,103120.0,103110.0,0.24392156]
[1747642352950,0.00347971,103120.0,103110.0,0.24392156]
[1747642353157,0.00047971,103120.0,103110.0,0.24392156]
[1747642353366,0.00147971,103120.0,103110.0,0.24392156]
[1747642353567,0.00447971,103120.0,103110.0,0.2506549]
[1747642354194,0.01417649,103120.0,103110.0,0.2506549]
[1747642354370,0.00447971,103120.0,103110.0,0.2352549]
[1747642357528,0.01987971,103120.0,103110.0,0.2352549]
[1747642357738,0.0295763,103120.0,103110.0,0.22852156]
[1747642357952,0.22337039,103130.0,103120.0,0.21334319]
[1747642358172,0.22346349,103130.0,103120.0,0.22304015]
[1747642359521,0.22746349,103130.0,103120.0,0.22304015]
[1747642359928,0.043227,103130.0,103120.0,0.22304015]
[1747642360141,0.02348506,103130.0,103120.0,0.23273693]
[1747642360353,0.0040931,103130.0,103120.0,0.26443693]
[1747642360779,0.0040931,103130.0,103120.0,0.27115717]
[1747642360996,0.0040931,103130.0,103120.0,0.28108528]
[1747642361222,0.0040931,103130.0,103120.0,0.88441493]
[1747642361435,0.0040931,103130.0,103120.0,1.15205781]
[1747642361865,9.31e-05,103130.0,103120.0,1.15205781]
[1747642362016,0.0020931,103130.0,103120.0,1.15205781]
[1747642362443,9.31e-05,103130.0,103120.0,1.16205781]
[1747642362858,9.31e-05,103130.0,103120.0,1.16305781]
[1747642363312,9.31e-05,103130.0,103120.0,1.17211921]
[1747642366661,9.31e-05,103130.0,103120.0,2.02062021]
[1747642366873,9.31e-05,103130.0,103120.0,1.63424121]
[1747642367626,9.31e-05,103130.0,103120.0,1.63324121]
[1747642368039,9.31e-05,103130.0,103120.0,1.63524121]
[1747642368247,9.31e-05,103130.0,103120.0,1.39169121]
[1747642368447,9.31e-05,103130.0,103120.0,1.39369121]
[1747642369086,9.31e-05,103130.0,103120.0,0.97999121]
[1747642369292,9.31e-05,103130.0,103120.0,0.98999121]
[1747642369866,0.0787794,103170.0,103160.0,0.22295349]
[1747642370076,0.00114381,103170.0,103160.0,0.35126289]
[1747642370310,0.00114381,103170.0,103160.0,0.35798313]
[1747642370739,0.00114381,103170.0,103160.0,0.37015903]
[1747642371580,0.00514381,103170.0,103160.0,0.37015903]
[1747642371989,0.00114381,103170.0,103160.0,0.37015903]
[1747642373556,0.00114381,103170.0,103160.0,0.37115903]
[1747642374177,0.00114381,103170.0,103160.0,0.33861875]
[1747642374433,0.00114381,103170.0,103160.0,0.30561395]
[1747642374654,0.00114381,103170.0,103160.0,0.2763679]
[1747642374878,0.00114381,103170.0,103160.0,0.3054478]
[1747642375087,0.00114381,103170.0,103160.0,0.29517742]
[1747642375730,0.00114381,103170.0,103160.0,0.27715075]
[1747642375943,0.00114381,103170.0,103160.0,0.26904895]
[1747642376144,0.00114381,103170.0,103160.0,0.26007693]
[1747642376275,0.00114381,103170.0,103160.0,0.25289652]
[1747642376483,0.00114381,103170.0,103160.0,0.23772743]
[1747642376695,0.00114381,103170.0,103160.0,0.23637166]
[1747642378985,0.00114381,103170.0,103160.0,0.24537698]
[1747642379327,0.00114381,103170.0,103160.0,0.65907698]
[1747642380895,0.00114381,103170.0,103160.0,0.61838396]
[1747642381142,0.01754381,103170.0,103160.0,0.54046078]
[1747642381360,0.03374381,103170.0,103160.0,0.54046078]
[1747642381988,0.03374381,103170.0,103160.0,0.53145546]
[1747642382195,0.04343579,103170.0,103160.0,0.53145546]
[1747642382430,0.2566756,103170.0,103160.0,0.43359614]
[1747642382637,0.24698352,103170.0,103160.0,0.63716331]
[1747642383066,0.24698352,103170.0,103160.0,0.63044307]
[1747642383682,0.24698352,103170.0,103160.0,0.64013656]
[1747642383928,0.24698352,103170.0,103160.0,0.64013655]
[1747642384377,0.24698352,103170.0,103160.0,0.64013674]
[1747642384587,0.24698352,103170.0,103160.0,0.63338312]
[1747642384797,0.24698352,103170.0,103160.0,0.64010067]
[1747642385039,0.24698352,103170.0,103160.0,0.64979416]
[1747642385468,0.24698352,103170.0,103160.0,0.23609416]
[1747642385685,0.24698352,103170.0,103160.0,0.24578755]
[1747642385896,0.24698352,103170.0,103160.0,0.25548085]
[1747642386410,0.24698352,103170.0,103160.0,0.24578755]
[1747642386620,0.23729116,103170.0,103160.0,0.23609416]
[1747642386923,0.23309116,103170.0,103160.0,0.23609416]
[1747642387133,0.23309116,103170.0,103160.0,0.21670709]
[1747642387338,0.22339861,103170.0,103160.0,0.01313983]
[1747642387572,0.56957523,103170.0,103160.0,0.01313983]
[1747642387776,0.56957523,103170.0,103160.0,0.01989345]
[1747642389869,0.32070801,103170.0,103160.0,0.01989345]
[1747642390657,0.24278361,103170.0,103160.0,0.24284694]
[1747642390863,0.00969208,103170.0,103160.0,0.24284694]
[1747642391059,0.0407917,103180.0,103170.0,0.2132398]
[1747642391264,0.24431922,103180.0,103170.0,0.21995735]
[1747642391710,0.25401045,103180.0,103170.0,0.22964962]
[1747642391910,0.24431922,103180.0,103170.0,0.22964962]
[1747642392292,0.24431922,103180.0,103170.0,0.22967168]
[1747642392499,0.24431922,103180.0,103170.0,0.23509396]
[1747642392983,0.24431922,103180.0,103170.0,0.22540169]
[1747642393225,0.24531922,103180.0,103170.0,0.22540169]
[1747642394416,0.24531922,103180.0,103170.0,0.24116063]
[1747642394579,0.23562771,103180.0,103170.0,0.24116063]
[1747642394780,0.48449493,103180.0,103170.0,0.24116063]
[1747642396352,0.45339493,103180.0,103170.0,0.24116063]
[1747642396553,0.45870323,103180.0,103170.0,0.23146818]
[1747642396761,0.47530323,103180.0,103170.0,0.23146818]
[1747642396985,0.57261263,103180.0,103170.0,0.02792083]
[1747642397192,0.57261263,103180.0,103170.0,0.01891551]
[1747642398949,0.57173263,103180.0,103170.0,0.01891551]
[1747642399346,0.82059985,103180.0,103170.0,0.01891551]
[1747642399552,1.16059985,103180.0,103170.0,0.0121759]
[1747642400324,1.16059985,103180.0,103170.0,0.00542228]
[1747642401478,0.23554735,103170.0,103160.0,0.00675362]
[1747642401685,1.03847119,103170.0,103160.0,0.00675362]
[1747642403567,1.24647119,103170.0,103160.0,0.00543274]
[1747642403783,1.58647119,103170.0,103160.0,0.00543274]
[1747642404382,0.24468095,103150.0,103140.0,0.01675894]
[1747642404620,0.79861757,103150.0,103140.0,0.01690275]
[1747642405000,0.79861757,103150.0,103140.0,0.0236498]
[1747642405574,0.54975035,103150.0,103140.0,0.0236498]
[1747642405774,0.79861757,103150.0,103140.0,0.01332505]
[1747642406173,0.54975035,103150.0,103140.0,0.01332505]
[1747642406542,0.79861757,103150.0,103140.0,0.01332505]
[1747642407646,0.79961757,103150.0,103140.0,0.006578]
[1747642411395,1.04848479,103150.0,103140.0,0.006578]
[1747642412051,0.79961757,103150.0,103140.0,0.006578]
[1747642412252,1.04848479,103150.0,103140.0,0.006578]
[1747642412662,1.04848479,103150.0,103140.0,0.00114381]
[1747642413779,1.25600479,103150.0,103140.0,0.00114381]
[1747642415576,0.97517757,103150.0,103140.0,0.20475036]
[1747642415784,0.97517757,103150.0,103140.0,0.22414044]
[1747642415785,0.36656519,103150.0,103140.0,0.22414044]
[1747642416014,0.47677522,103150.0,103140.0,0.24044044]
[1747642416222,0.28864398,103150.0,103140.0,0.24044044]
[1747642416428,0.28864398,103150.0,103140.0,0.25614044]
[1747642416637,0.27894955,103150.0,103140.0,0.25614044]
[1747642416850,0.26925522,103150.0,103140.0,0.25614044]
[1747642417262,0.27894955,103150.0,103140.0,0.25614044]
[1747642417467,0.26925522,103150.0,103140.0,0.25614044]
[1747642417668,0.27894955,103150.0,103140.0,0.25614044]
[1747642417872,0.28864398,103150.0,103140.0,0.25614044]
[1747642418079,0.48253636,103150.0,103140.0,0.23074554]
[1747642418285,0.48253636,103150.0,103140.0,0.25013552]
[1747642418553,0.49223097,103150.0,103140.0,0.25556276]
[1747642418701,0.28864398,103150.0,103140.0,0.27196276]
[1747642418908,0.03977676,103150.0,103140.0,0.27196276]
[1747642419138,0.001,103150.0,103140.0,0.27196276]
[1747642419344,0.001,103150.0,103140.0,0.2787]
[1747642420605,0.01069377,103150.0,103140.0,0.2787]
[1747642421377,0.01069377,103150.0,103140.0,0.6924]
[1747642422664,0.02038763,103150.0,103140.0,0.6924]
[1747642423120,0.02038763,103150.0,103140.0,0.7024]
[1747642423775,0.03008168,103150.0,103140.0,0.7024]
[1747642424202,0.02964137,103150.0,103140.0,0.7024]
[1747642424622,0.01994732,103150.0,103140.0,0.7024]
[1747642424806,0.02964137,103150.0,103140.0,0.7024]
[1747642425359,0.27850859,103150.0,103140.0,0.7024]
[1747642425978,0.02964137,103150.0,103140.0,0.7024]
[1747642426182,0.03933561,103150.0,103140.0,0.7024]
[1747642426384,0.02964137,103150.0,103140.0,0.7024]
[1747642426789,0.03933561,103150.0,103140.0,0.7024]
[1747642427021,0.29789801,103150.0,103140.0,0.7024]
[1747642427247,0.48209709,103150.0,103140.0,0.68301002]
[1747642427537,0.48209709,103150.0,103140.0,0.65031011]
[1747642427735,0.48209709,103150.0,103140.0,0.66000529]
[1747642427918,0.47240285,103150.0,103140.0,0.65030992]
[1747642428484,0.47240285,103150.0,103140.0,0.66670992]
[1747642429090,0.47240285,103150.0,103140.0,0.66671011]
[1747642429233,0.47240285,103150.0,103140.0,0.68610037]
[1747642430159,0.25912105,103150.0,103140.0,0.71089527]
[1747642430341,0.28820386,103150.0,103140.0,0.29719527]
[1747642431657,0.49179085,103150.0,103140.0,0.29719527]
[1747642431839,0.28820386,103150.0,103140.0,0.29719527]
[1747642432279,0.28820386,103150.0,103140.0,0.30394889]
[1747642433545,0.48209624,103150.0,103140.0,0.30394889]
[1747642433758,0.28820386,103150.0,103140.0,0.30394889]
[1747642434394,0.01025355,103150.0,103140.0,0.30394889]
[1747642434608,0.01025346,103150.0,103140.0,0.30394889]
[1747642434818,0.00055969,103150.0,103140.0,0.30394889]
[1747642436276,0.00055969,103150.0,103140.0,0.71764889]
[1747642436828,0.24942691,103150.0,103140.0,0.71764889]
[1747642437162,0.24942691,103150.0,103140.0,0.72665421]
[1747642437507,0.00055969,103150.0,103140.0,0.72665421]
[1747642437723,0.24942691,103150.0,103140.0,0.72665421]
[1747642438499,0.00055969,103150.0,103140.0,0.72665421]
[1747642438710,0.24942691,103150.0,103140.0,0.72665421]
[1747642439357,0.00055969,103150.0,103140.0,0.72665421]
[1747642439561,0.24942691,103150.0,103140.0,0.72665421]
[1747642441090,0.00055969,103150.0,103140.0,0.72665421]
[1747642441288,0.24942691,103150.0,103140.0,0.72665421]
[1747642441604,0.25912068,103150.0,103140.0,0.72665421]
[1747642442318,0.47240172,103150.0,103140.0,0.24267387]
[1747642442540,0.47870786,103150.0,103140.0,0.24267387]
[1747642442708,0.45931929,103150.0,103140.0,0.03906723]
[1747642442906,0.45931929,103150.0,103140.0,0.03006191]
[1747642442907,0.47511929,103150.0,103140.0,0.03006191]
[1747642443313,0.68319929,103150.0,103140.0,0.03006191]
[1747642445443,0.82129591,103150.0,103140.0,0.03006191]
[1747642445711,0.82129591,103150.0,103140.0,0.02330829]
[1747642445712,1.02873591,103150.0,103140.0,0.02330829]
[1747642445918,0.77986869,103150.0,103140.0,0.02330829]
[1747642446139,0.78935299,103150.0,103140.0,0.01657105]
[1747642449178,1.12935299,103150.0,103140.0,0.01657105]
[1747642449400,1.37822021,103150.0,103140.0,0.01657105]
[1747642449605,1.12935299,103150.0,103140.0,0.01114381]
[1747642453308,1.37822021,103150.0,103140.0,0.01114381]
[1747642454189,1.58418021,103150.0,103140.0,0.01114381]
[1747642455024,1.58418021,103150.0,103140.0,0.00114381]
[1747642455210,0.213343,103120.0,103110.0,0.03865362]
[1747642455450,0.46221022,103120.0,103110.0,0.00684672]
[1747642455662,0.55951962,103120.0,103110.0,0.01227551]
[1747642456281,0.59151962,103120.0,103110.0,0.01427551]
[1747642456501,0.57521962,103120.0,103110.0,0.01527551]
[1747642456702,0.55951962,103120.0,103110.0,0.01327551]
[1747642457241,0.55951962,103120.0,103110.0,0.01227551]
[1747642457727,0.55951962,103120.0,103110.0,9.31e-05]
[1747642458592,0.56051962,103120.0,103110.0,9.31e-05]
[1747642459554,0.56051962,103120.0,103110.0,0.1940607]
[1747642459763,0.55082266,103120.0,103110.0,0.0306931]
[1747642459970,0.75674266,103120.0,103110.0,0.23435908]
[1747642460797,0.75674266,103120.0,103110.0,0.0306931]
[1747642461193,0.75674266,103120.0,103110.0,0.22472098]
[1747642461422,0.25956418,103120.0,103110.0,0.24411764]
[1747642461638,0.001,103120.0,103110.0,0.26351336]
[1747642461807,0.01069678,103120.0,103110.0,0.26351336]
[1747642462226,0.001,103120.0,103110.0,0.26351336]
[1747642462663,0.01069668,103120.0,103110.0,0.27024781]
[1747642462869,0.001,103120.0,103110.0,0.27024781]
[1747642463268,0.001,103120.0,103110.0,0.27566846]
[1747642464009,0.01069659,103120.0,103110.0,0.27566846]
[1747642464219,0.001,103120.0,103110.0,0.27566846]
[1747642464770,0.01069659,103120.0,103110.0,0.27566846]
[1747642465155,0.001,103120.0,103110.0,0.27566846]
[1747642466055,0.26825974,103130.0,103120.0,0.25464024]
[1747642466257,0.27795549,103130.0,103120.0,0.26433702]
[1747642466767,0.27795549,103130.0,103120.0,0.2643973]
[1747642467269,0.25856306,103130.0,103120.0,0.2643973]
[1747642467518,0.02908798,103130.0,103120.0,0.26981795]
[1747642468135,0.03008798,103130.0,103120.0,0.27655682]
[1747642468283,0.2789552,103130.0,103120.0,0.27655682]
[1747642468686,0.29065151,103130.0,103120.0,0.27655682]
[1747642470082,0.48458206,103130.0,103120.0,0.25716317]
[1747642470292,0.56249932,103130.0,103120.0,0.0122198]
[1747642470497,0.80155932,103130.0,103120.0,0.0122198]
[1747642470706,0.80155932,103130.0,103120.0,0.00548093]
[1747642472205,0.80155932,103130.0,103120.0,6.028e-05]
[1747642473148,0.78345934,103130.0,103120.0,6.028e-05]
[1747642475423,0.10900542,103130.0,103120.0,0.23870025]
[1747642475634,0.23471427,103130.0,103120.0,0.25370025]
[1747642475840,0.2896515,103130.0,103120.0,0.24943797]
[1747642476052,0.2896515,103130.0,103120.0,0.26588769]
[1747642478972,0.2896515,103130.0,103120.0,0.24649385]
[1747642478973,0.48358149,103130.0,103120.0,0.24649385]
[1747642479183,0.48358224,103130.0,103120.0,0.26588825]
[1747642479352,0.47388622,103130.0,103120.0,0.26588825]
[1747642479560,0.4641901,103130.0,103120.0,0.26588825]
[1747642479780,0.4641901,103130.0,103120.0,0.27558531]
[1747642480325,0.4641901,103130.0,103120.0,0.27015081]
[1747642481552,0.4641901,103130.0,103120.0,0.27559158]
[1747642481761,0.21532288,103130.0,103120.0,0.28528845]
[1747642481935,0.4641901,103130.0,103120.0,0.27559158]
[1747642483295,0.4641901,103130.0,103120.0,0.24650012]
[1747642483505,0.4641901,103130.0,103120.0,0.22559737]
[1747642483738,0.4641901,103130.0,103120.0,0.23529452]
[1747642484389,0.4641901,103130.0,103120.0,0.21590012]
[1747642484595,0.4641901,103130.0,103120.0,0.22559737]
[1747642490228,0.46373837,103130.0,103120.0,0.21590012]
[1747642490454,0.45404197,103130.0,103120.0,0.01225399]
[1747642490607,0.58335137,103130.0,103120.0,0.01225399]
[1747642493781,0.55135137,103130.0,103120.0,0.01225399]
[1747642494166,0.75503137,103130.0,103120.0,0.01225399]
[1747642496162,0.75466559,103130.0,103120.0,0.01225399]
[1747642496728,0.55098559,103130.0,103120.0,0.01225399]
[1747642496987,0.75446559,103130.0,103120.0,0.01225399]
[1747642498410,0.6668524,103130.0,103120.0,0.26559423]
[1747642498613,0.03027094,103130.0,103120.0,0.27529101]
[1747642498980,0.03027019,103130.0,103120.0,0.27529101]
[1747642499199,0.0399664,103130.0,103120.0,0.27529101]
[1747642499400,0.04966271,103130.0,103120.0,0.27529101]
[1747642499598,0.04966271,103130.0,103120.0,0.28209264]
[1747642500203,0.04966346,103130.0,103120.0,0.28209264]
[1747642500430,0.29853068,103130.0,103120.0,0.28209264]
[1747642500603,0.49246067,103130.0,103120.0,0.28209264]
[1747642500809,0.28883428,103130.0,103120.0,0.28209264]
[1747642500982,0.03996706,103130.0,103120.0,0.28209264]
[1747642501190,0.28883428,103130.0,103120.0,0.28209264]
[1747642501605,0.03996706,103130.0,103120.0,0.28209264]
[1747642504687,0.02057454,103130.0,103120.0,0.28209264]
[1747642504880,0.00118249,103130.0,103120.0,0.28209264]
[1747642505109,0.00118249,103130.0,103120.0,0.79310204]
[1747642505900,0.00118249,103130.0,103120.0,1.14764289]
[1747642506098,0.20348,103150.0,103140.0,0.25529672]
[1747642506317,0.22286594,103160.0,103150.0,0.2229751]
[1747642506530,0.02907914,103160.0,103150.0,0.2552751]
[1747642506764,0.02907914,103160.0,103150.0,0.26202804]
[1747642506966,0.87972085,103170.0,103160.0,0.21326047]
[1747642507203,0.67628085,103170.0,103160.0,0.22856047]
[1747642507409,0.67628085,103170.0,103160.0,0.22862075]
[1747642507557,0.66673231,103170.0,103160.0,0.24422094]
[1747642507972,0.66673231,103170.0,103160.0,0.24966171]
[1747642508547,0.66773231,103170.0,103160.0,0.24966171]
[1747642508747,0.65803976,103170.0,103160.0,0.23406171]
[1747642508974,0.65803976,103170.0,103160.0,0.21876171]
[1747642509179,0.66203976,103170.0,103160.0,0.21876171]
[1747642509768,0.65234702,103170.0,103160.0,0.21876171]
[1747642509982,0.99852364,103170.0,103160.0,0.00550105]
[1747642510184,0.82724364,103170.0,103160.0,0.00550105]
[1747642510403,1.03068364,103170.0,103160.0,6.028e-05]
[1747642511482,1.37068364,103170.0,103160.0,6.028e-05]
[1747642512402,1.37059518,103170.0,103160.0,6.028e-05]
[1747642512598,0.78172796,103170.0,103160.0,6.028e-05]
[1747642513310,1.03059518,103170.0,103160.0,6.028e-05]
[1747642513768,0.99839518,103170.0,103160.0,6.028e-05]
[1747642513964,0.74952796,103170.0,103160.0,6.028e-05]
[1747642515061,0.20356717,103160.0,103150.0,0.25332933]
[1747642515267,0.45243439,103160.0,103150.0,0.25332933]
[1747642515465,0.00969339,103160.0,103150.0,0.25332933]
[1747642515710,0.21326018,103160.0,103150.0,0.26302329]
[1747642515859,0.01938631,103160.0,103150.0,0.26302329]
[1747642516053,0.0290798,103160.0,103150.0,0.25332933]
[1747642516287,0.0290798,103160.0,103150.0,0.26302329]
[1747642516527,0.0320798,103160.0,103150.0,0.26844463]
[1747642516922,0.0330798,103160.0,103150.0,0.26844463]
[1747642517831,0.23664697,103160.0,103150.0,0.26844463]
[1747642519490,0.04277338,103160.0,103150.0,0.26844463]
[1747642521167,0.02338631,103160.0,103150.0,0.26844463]
[1747642521401,0.03307924,103160.0,103150.0,0.26844463]
[1747642522034,0.03307924,103160.0,103150.0,0.27517616]